[Event "Late-Titled-Tuesday-Blitz-June-25-2024"]
[Site "Chess.com"]
[Date "2024.06.25"]
[Round "11"]
[White "guillembaches"]
[Black "Hirna2005"]
[Result "1-0"]
[WhiteElo "2526"]
[BlackElo "2376"]
[TimeControl "180+1"]
[EndTime "16:06:41 PDT"]
[Termination "guillembaches won on time"]

1. d4 {[%clk 0:03:00.9]} 1... g6 {[%clk 0:02:57.9]} 2. Nf3 {[%clk 0:03:01.7]}
2... Bg7 {[%clk 0:02:57.5]} 3. c3 {[%clk 0:03:01.5]} 3... d6 {[%clk 0:02:57.8]}
4. Bg5 {[%clk 0:03:01.7]} 4... Nd7 {[%clk 0:02:56.6]} 5. Nbd2 {[%clk 0:03:00.5]}
5... c5 {[%clk 0:02:56.4]} 6. e3 {[%clk 0:02:58.1]} 6... b6 {[%clk 0:02:56]} 7.
Bd3 {[%clk 0:02:54.8]} 7... Bb7 {[%clk 0:02:56.2]} 8. h3 {[%clk 0:02:50.8]} 8...
Ngf6 {[%clk 0:02:54.7]} 9. Qe2 {[%clk 0:02:49.2]} 9... O-O {[%clk 0:02:53.3]}
10. O-O-O {[%clk 0:02:49.2]} 10... Rc8 {[%clk 0:02:49.4]} 11. Kb1 {[%clk
0:02:49.1]} 11... Qc7 {[%clk 0:02:38.9]} 12. Bf4 {[%clk 0:02:41.4]} 12... Rfe8
{[%clk 0:02:29.7]} 13. Bh2 {[%clk 0:02:40.2]} 13... e5 {[%clk 0:02:17.2]} 14.
dxe5 {[%clk 0:02:39.9]} 14... dxe5 {[%clk 0:02:16.4]} 15. e4 {[%clk 0:02:38.7]}
15... Nh5 {[%clk 0:02:13.2]} 16. g3 {[%clk 0:02:22.2]} 16... Rcd8 {[%clk
0:02:12.3]} 17. Nc4 {[%clk 0:02:14]} 17... Nb8 {[%clk 0:02:05.3]} 18. Ne3 {[%clk
0:02:06.2]} 18... Nf6 {[%clk 0:01:55]} 19. Nd2 {[%clk 0:02:02.6]} 19... Nc6
{[%clk 0:01:50.7]} 20. g4 {[%clk 0:01:54.5]} 20... Ne7 {[%clk 0:01:24.5]} 21. f3
{[%clk 0:01:43.6]} 21... Nd7 {[%clk 0:01:17.3]} 22. Bb5 {[%clk 0:01:30.1]} 22...
Bc6 {[%clk 0:01:15.5]} 23. Bc4 {[%clk 0:01:26]} 23... a6 {[%clk 0:01:13.4]} 24.
Bxa6 {[%clk 0:01:22.9]} 24... Ra8 {[%clk 0:01:13.1]} 25. Bc4 {[%clk 0:01:20.7]}
25... b5 {[%clk 0:01:10]} 26. Bd5 {[%clk 0:01:14.4]} 26... Nxd5 {[%clk 0:00:57]}
27. exd5 {[%clk 0:01:11.9]} 27... Bb7 {[%clk 0:00:57.1]} 28. Ne4 {[%clk
0:01:04.9]} 28... c4 {[%clk 0:00:55.6]} 29. a3 {[%clk 0:01:01.4]} 29... Qb6
{[%clk 0:00:48.4]} 30. h4 {[%clk 0:00:55.6]} 30... Nc5 {[%clk 0:00:33.4]} 31.
Bg1 {[%clk 0:00:53.2]} 31... Nxe4 {[%clk 0:00:22]} 32. fxe4 {[%clk 0:00:51.4]}
32... Qd6 {[%clk 0:00:21.4]} 33. h5 {[%clk 0:00:47.1]} 33... Bh6 {[%clk
0:00:18.9]} 34. hxg6 {[%clk 0:00:43.7]} 34... Qxg6 {[%clk 0:00:14.8]} 35. Nf5
{[%clk 0:00:41.6]} 35... Bf8 {[%clk 0:00:14.8]} 36. Be3 {[%clk 0:00:36.3]} 36...
Bc8 {[%clk 0:00:13.9]} 37. Rh5 {[%clk 0:00:34.1]} 37... f6 {[%clk 0:00:09.1]}
38. Rdh1 {[%clk 0:00:33]} 38... Rb8 {[%clk 0:00:04.2]} 39. Qh2 {[%clk
0:00:31.5]} 39... Rb7 {[%clk 0:00:03.9]} 40. Ka2 {[%clk 0:00:28.1]} 40... Rf7
{[%clk 0:00:02.5]} 41. Bh6 {[%clk 0:00:27.5]} 41... Bc5 {[%clk 0:00:01.1]} 42.
Be3 {[%clk 0:00:27.1]} 42... Bf8 {[%clk 0:00:01.3]} 43. Nh6+ {[%clk 0:00:27.2]}
43... Bxh6 {[%clk 0:00:01.4]} 44. Rxh6 {[%clk 0:00:27.4]} 1-0

[Event "Late-Titled-Tuesday-Blitz-June-25-2024"]
[Site "Chess.com"]
[Date "2024.06.25"]
[Round "11"]
[White "klercaku"]
[Black "Kielinkei"]
[Result "1-0"]
[WhiteElo "2339"]
[BlackElo "2487"]
[TimeControl "180+1"]
[EndTime "16:06:46 PDT"]
[Termination "klercaku won by resignation"]

1. e4 {[%clk 0:03:00.9]} 1... c5 {[%clk 0:02:59.8]} 2. Nf3 {[%clk 0:03:00.3]}
2... e6 {[%clk 0:03:00.4]} 3. d4 {[%clk 0:02:59.7]} 3... cxd4 {[%clk 0:03:01.3]}
4. Nxd4 {[%clk 0:03:00.4]} 4... Nc6 {[%clk 0:03:02]} 5. Nc3 {[%clk 0:02:58.7]}
5... Qc7 {[%clk 0:03:02.5]} 6. Be3 {[%clk 0:02:58]} 6... a6 {[%clk 0:03:02.8]}
7. a3 {[%clk 0:02:58.2]} 7... Nf6 {[%clk 0:03:00.2]} 8. Be2 {[%clk 0:02:58.4]}
8... Be7 {[%clk 0:02:59.2]} 9. O-O {[%clk 0:02:58]} 9... O-O {[%clk 0:02:59.7]}
10. h3 {[%clk 0:02:57.2]} 10... d6 {[%clk 0:02:43.7]} 11. f4 {[%clk 0:02:49.2]}
11... Bd7 {[%clk 0:02:42.8]} 12. Bf3 {[%clk 0:02:43.7]} 12... Rad8 {[%clk
0:02:41.6]} 13. Qe2 {[%clk 0:02:42.7]} 13... b5 {[%clk 0:02:38.7]} 14. Rad1
{[%clk 0:02:41.4]} 14... Nxd4 {[%clk 0:02:36.8]} 15. Bxd4 {[%clk 0:02:39.1]}
15... e5 {[%clk 0:02:35]} 16. Be3 {[%clk 0:02:33.8]} 16... Bc6 {[%clk
0:02:24.8]} 17. f5 {[%clk 0:02:22.6]} 17... Qb7 {[%clk 0:02:20.3]} 18. Bf2
{[%clk 0:02:22.8]} 18... a5 {[%clk 0:02:17.7]} 19. b4 {[%clk 0:02:02.8]} 19...
axb4 {[%clk 0:02:16.4]} 20. axb4 {[%clk 0:02:03.4]} 20... Rc8 {[%clk 0:02:13.7]}
21. g4 {[%clk 0:02:01.3]} 21... Nd7 {[%clk 0:02:02.5]} 22. Nd5 {[%clk
0:01:49.4]} 22... Bd8 {[%clk 0:01:55.2]} 23. h4 {[%clk 0:01:42.5]} 23... Bxd5
{[%clk 0:01:53]} 24. Rxd5 {[%clk 0:01:40.4]} 24... Qc6 {[%clk 0:01:48.3]} 25.
Rfd1 {[%clk 0:01:07.1]} 25... Be7 {[%clk 0:01:34.3]} 26. Qxb5 {[%clk 0:01:01.6]}
26... Qxb5 {[%clk 0:01:29.2]} 27. Rxb5 {[%clk 0:01:02.3]} 27... Rxc2 {[%clk
0:01:05.9]} 28. Rb7 {[%clk 0:01:00]} 28... Rd8 {[%clk 0:01:05.5]} 29. b5 {[%clk
0:00:48.3]} 29... Rxf2 {[%clk 0:00:58.3]} 30. Kxf2 {[%clk 0:00:46.9]} 30...
Bxh4+ {[%clk 0:00:58.1]} 31. Kg2 {[%clk 0:00:46.4]} 31... Nc5 {[%clk 0:00:58]}
32. Rc7 {[%clk 0:00:41.8]} 32... h5 {[%clk 0:00:18.5]} 33. b6 {[%clk 0:00:37.5]}
33... hxg4 {[%clk 0:00:16.3]} 34. Bxg4 {[%clk 0:00:31.4]} 34... Rb8 {[%clk
0:00:15]} 35. Rxd6 {[%clk 0:00:27]} 35... Nxe4 {[%clk 0:00:09.3]} 36. Rdc6
{[%clk 0:00:26]} 36... Kh7 {[%clk 0:00:04.6]} 37. b7 {[%clk 0:00:20.6]} 37...
Bd8 {[%clk 0:00:02.9]} 38. Rxf7 {[%clk 0:00:20.7]} 38... Nd2 {[%clk 0:00:01.6]}
39. Rc8 {[%clk 0:00:19.4]} 39... Bc7 {[%clk 0:00:01.2]} 40. Rfxc7 {[%clk
0:00:18.7]} 1-0

[Event "Late-Titled-Tuesday-Blitz-June-25-2024"]
[Site "Chess.com"]
[Date "2024.06.25"]
[Round "11"]
[White "Winner_7777"]
[Black "cthulhuuu"]
[Result "0-1"]
[WhiteElo "2518"]
[BlackElo "2421"]
[TimeControl "180+1"]
[EndTime "16:06:49 PDT"]
[Termination "cthulhuuu won by checkmate"]

1. d4 {[%clk 0:02:59.9]} 1... Nf6 {[%clk 0:02:59.5]} 2. c4 {[%clk 0:02:59.6]}
2... e5 {[%clk 0:02:59.8]} 3. dxe5 {[%clk 0:02:59.6]} 3... Ng4 {[%clk
0:03:00.3]} 4. e3 {[%clk 0:02:57.1]} 4... Nxe5 {[%clk 0:03:00.1]} 5. Nc3 {[%clk
0:02:53.2]} 5... Bb4 {[%clk 0:02:52.2]} 6. f4 {[%clk 0:02:52.1]} 6... Bxc3+
{[%clk 0:02:52]} 7. bxc3 {[%clk 0:02:51.4]} 7... Nec6 {[%clk 0:02:52.3]} 8. Bd3
{[%clk 0:02:49.5]} 8... d6 {[%clk 0:02:52.5]} 9. Nf3 {[%clk 0:02:47]} 9... Nd7
{[%clk 0:02:51.6]} 10. O-O {[%clk 0:02:45.5]} 10... Nc5 {[%clk 0:02:51.8]} 11.
Bc2 {[%clk 0:02:39.2]} 11... f5 {[%clk 0:02:38.2]} 12. Ng5 {[%clk 0:02:29.9]}
12... O-O {[%clk 0:02:30.5]} 13. Qd5+ {[%clk 0:02:27.6]} 13... Kh8 {[%clk
0:02:25]} 14. Nf7+ {[%clk 0:02:28.2]} 14... Rxf7 {[%clk 0:02:25.2]} 15. Qxf7
{[%clk 0:02:28.9]} 15... Be6 {[%clk 0:02:25.8]} 16. Qh5 {[%clk 0:02:27.5]} 16...
Qf6 {[%clk 0:02:18.8]} 17. Bd2 {[%clk 0:02:16.2]} 17... Bxc4 {[%clk 0:02:17.2]}
18. Rf3 {[%clk 0:01:29.9]} 18... g6 {[%clk 0:02:13.1]} 19. Qh6 {[%clk
0:01:19.6]} 19... Re8 {[%clk 0:01:53.1]} 20. Rh3 {[%clk 0:01:04.7]} 20... Qg7
{[%clk 0:01:45]} 21. Qh4 {[%clk 0:00:59.9]} 21... b5 {[%clk 0:00:58.4]} 22. Re1
{[%clk 0:00:33.8]} 22... Bxa2 {[%clk 0:00:45.7]} 23. g4 {[%clk 0:00:31.5]} 23...
fxg4 {[%clk 0:00:45.9]} 24. Qxg4 {[%clk 0:00:32.4]} 24... Be6 {[%clk 0:00:45.8]}
25. f5 {[%clk 0:00:31.3]} 25... Bxf5 {[%clk 0:00:37.3]} 26. Bxf5 {[%clk
0:00:30.7]} 26... gxf5 {[%clk 0:00:38.2]} 27. Qxg7+ {[%clk 0:00:31.6]} 27...
Kxg7 {[%clk 0:00:38.8]} 28. Rf3 {[%clk 0:00:24.6]} 28... Ne4 {[%clk 0:00:34.6]}
29. Bc1 {[%clk 0:00:20.9]} 29... Rf8 {[%clk 0:00:33.4]} 30. Ref1 {[%clk
0:00:19.7]} 30... Kg6 {[%clk 0:00:30.6]} 31. Bb2 {[%clk 0:00:19.4]} 31... Ne5
{[%clk 0:00:30]} 32. Rh3 {[%clk 0:00:17.1]} 32... Nc4 {[%clk 0:00:28.1]} 33. Ba1
{[%clk 0:00:16.7]} 33... a5 {[%clk 0:00:23.8]} 34. Rh4 {[%clk 0:00:15.9]} 34...
Rf7 {[%clk 0:00:19]} 35. Kh1 {[%clk 0:00:13.3]} 35... Nxe3 {[%clk 0:00:11]} 36.
Rg1+ {[%clk 0:00:11.6]} 36... Kf6 {[%clk 0:00:09.7]} 37. c4+ {[%clk 0:00:12.3]}
37... Ke6 {[%clk 0:00:09.2]} 38. cxb5 {[%clk 0:00:07.8]} 38... Nf2# {[%clk
0:00:09.4]} 0-1

[Event "Late-Titled-Tuesday-Blitz-June-25-2024"]
[Site "Chess.com"]
[Date "2024.06.25"]
[Round "11"]
[White "prxcess_brownie"]
[Black "Beaterawn"]
[Result "0-1"]
[WhiteElo "2237"]
[BlackElo "2411"]
[TimeControl "180+1"]
[EndTime "16:06:49 PDT"]
[Termination "Beaterawn won by resignation"]

1. c4 {[%clk 0:03:00.9]} 1... e5 {[%clk 0:02:51.6]} 2. Nc3 {[%clk 0:02:59]} 2...
Nf6 {[%clk 0:02:50.5]} 3. Nf3 {[%clk 0:02:58.5]} 3... Nc6 {[%clk 0:02:48.1]} 4.
g3 {[%clk 0:02:58.2]} 4... Bc5 {[%clk 0:02:46.2]} 5. Bg2 {[%clk 0:02:57.7]} 5...
d6 {[%clk 0:02:45.3]} 6. O-O {[%clk 0:02:57.3]} 6... O-O {[%clk 0:02:44.2]} 7.
h3 {[%clk 0:02:55.5]} 7... a6 {[%clk 0:02:44.7]} 8. d3 {[%clk 0:02:54.3]} 8...
h6 {[%clk 0:02:43.5]} 9. Kh2 {[%clk 0:02:53.6]} 9... Bd7 {[%clk 0:02:42.3]} 10.
a3 {[%clk 0:02:51.2]} 10... Re8 {[%clk 0:02:40.4]} 11. e4 {[%clk 0:02:47.9]}
11... Nd4 {[%clk 0:02:22.6]} 12. Nxd4 {[%clk 0:02:45.4]} 12... exd4 {[%clk
0:02:19.8]} 13. Ne2 {[%clk 0:02:44.4]} 13... a5 {[%clk 0:02:17]} 14. Rb1 {[%clk
0:02:37.7]} 14... c6 {[%clk 0:02:12.7]} 15. b4 {[%clk 0:02:35.5]} 15... axb4
{[%clk 0:02:11.6]} 16. axb4 {[%clk 0:02:36.4]} 16... Bb6 {[%clk 0:02:12]} 17.
Bb2 {[%clk 0:02:33.9]} 17... c5 {[%clk 0:02:10.6]} 18. f4 {[%clk 0:02:24.7]}
18... Nh7 {[%clk 0:01:48.3]} 19. Ra1 {[%clk 0:02:14.5]} 19... f5 {[%clk
0:01:45.2]} 20. exf5 {[%clk 0:01:43.6]} 20... Rxa1 {[%clk 0:01:43.7]} 21. Bxa1
{[%clk 0:01:42.5]} 21... Bxf5 {[%clk 0:01:41.8]} 22. g4 {[%clk 0:01:41.2]} 22...
Bc8 {[%clk 0:01:35.5]} 23. b5 {[%clk 0:01:32.9]} 23... Re3 {[%clk 0:01:34.3]}
24. Rf3 {[%clk 0:01:19.7]} 24... Qe7 {[%clk 0:01:27.2]} 25. Ng3 {[%clk
0:01:16.9]} 25... Nf6 {[%clk 0:01:21.8]} 26. Qd2 {[%clk 0:01:06.5]} 26... Re1
{[%clk 0:01:13.1]} 27. Bb2 {[%clk 0:00:59.9]} 27... Bd8 {[%clk 0:01:02.7]} 28.
Bc1 {[%clk 0:00:50.8]} 28... Bxg4 {[%clk 0:01:01.7]} 29. Rf1 {[%clk 0:00:40]}
29... Re3 {[%clk 0:00:48]} 30. Qc2 {[%clk 0:00:26.1]} 30... Be2 {[%clk 0:00:27]}
31. Re1 {[%clk 0:00:16.9]} 31... Ng4+ {[%clk 0:00:26.3]} 32. hxg4 {[%clk
0:00:15.1]} 32... Bxd3 {[%clk 0:00:20.6]} 33. Rxe3 {[%clk 0:00:10.3]} 33... Qh4+
{[%clk 0:00:20.3]} 34. Kg1 {[%clk 0:00:10.8]} 34... Bxc2 {[%clk 0:00:20.1]} 35.
Bd5+ {[%clk 0:00:10.6]} 35... Kf8 {[%clk 0:00:18.3]} 36. Kf2 {[%clk 0:00:09.4]}
36... dxe3+ {[%clk 0:00:18]} 37. Bxe3 {[%clk 0:00:08.8]} 37... Bf6 {[%clk
0:00:18.2]} 38. Kf3 {[%clk 0:00:07.7]} 38... Bd1+ {[%clk 0:00:17.9]} 39. Kf2
{[%clk 0:00:07.5]} 39... Bxg4 {[%clk 0:00:18.2]} 40. Bxb7 {[%clk 0:00:07.4]}
40... Bd4 {[%clk 0:00:18.3]} 41. Bg2 {[%clk 0:00:05.9]} 41... Bxe3+ {[%clk
0:00:18.1]} 42. Kxe3 {[%clk 0:00:06.8]} 42... Qxg3+ {[%clk 0:00:18]} 0-1

[Event "Late-Titled-Tuesday-Blitz-June-25-2024"]
[Site "Chess.com"]
[Date "2024.06.25"]
[Round "11"]
[White "Quattroporte300"]
[Black "tarno17"]
[Result "0-1"]
[WhiteElo "2393"]
[BlackElo "2193"]
[TimeControl "180+1"]
[EndTime "16:06:49 PDT"]
[Termination "tarno17 won by resignation"]

1. e4 {[%clk 0:03:00.9]} 1... c5 {[%clk 0:02:55.4]} 2. Nc3 {[%clk 0:03:00.1]}
2... a6 {[%clk 0:02:54]} 3. Nf3 {[%clk 0:02:57.6]} 3... e6 {[%clk 0:02:53.2]} 4.
d4 {[%clk 0:02:56.6]} 4... cxd4 {[%clk 0:02:51.7]} 5. Nxd4 {[%clk 0:02:57]} 5...
Qc7 {[%clk 0:02:51.7]} 6. g3 {[%clk 0:02:53.9]} 6... Nf6 {[%clk 0:02:49.8]} 7.
Bg2 {[%clk 0:02:53.9]} 7... d6 {[%clk 0:02:50.1]} 8. O-O {[%clk 0:02:53.4]} 8...
Be7 {[%clk 0:02:50.7]} 9. a4 {[%clk 0:02:52.5]} 9... Nc6 {[%clk 0:02:45.7]} 10.
Re1 {[%clk 0:02:52]} 10... e5 {[%clk 0:02:28.3]} 11. Nb3 {[%clk 0:02:45.1]}
11... Bg4 {[%clk 0:02:03.3]} 12. f3 {[%clk 0:02:39.1]} 12... Be6 {[%clk
0:01:59]} 13. Bg5 {[%clk 0:02:31.1]} 13... O-O {[%clk 0:01:49]} 14. Bxf6 {[%clk
0:02:26.9]} 14... Bxf6 {[%clk 0:01:48.5]} 15. Nd5 {[%clk 0:02:27.2]} 15... Bxd5
{[%clk 0:01:42.2]} 16. exd5 {[%clk 0:02:26.9]} 16... Ne7 {[%clk 0:01:35.3]} 17.
Qd3 {[%clk 0:02:20.5]} 17... Rac8 {[%clk 0:01:27.2]} 18. Re2 {[%clk 0:02:11.4]}
18... g6 {[%clk 0:01:08.3]} 19. Bh3 {[%clk 0:02:08]} 19... Rb8 {[%clk
0:00:57.8]} 20. a5 {[%clk 0:02:03]} 20... Bg7 {[%clk 0:00:54.5]} 21. Rc1 {[%clk
0:01:37.6]} 21... f5 {[%clk 0:00:50.5]} 22. c4 {[%clk 0:01:37]} 22... b6 {[%clk
0:00:47.3]} 23. axb6 {[%clk 0:01:30.3]} 23... Qxb6+ {[%clk 0:00:47.3]} 24. c5
{[%clk 0:01:23.6]} 24... Qxb3 {[%clk 0:00:42.3]} 25. Qxb3 {[%clk 0:01:14.9]}
25... Rxb3 {[%clk 0:00:43.2]} 26. cxd6 {[%clk 0:01:15.4]} 26... Nxd5 {[%clk
0:00:42.4]} 27. Rd2 {[%clk 0:01:15.3]} 27... Nf6 {[%clk 0:00:14.4]} 28. Rc7
{[%clk 0:01:10.1]} 28... Rd8 {[%clk 0:00:11.2]} 29. Bf1 {[%clk 0:01:09.9]} 29...
Rb6 {[%clk 0:00:09.6]} 30. d7 {[%clk 0:01:04.4]} 30... Bf8 {[%clk 0:00:09.9]}
31. Bc4+ {[%clk 0:00:57.1]} 31... Kg7 {[%clk 0:00:10.3]} 32. b3 {[%clk
0:00:55.5]} 32... Be7 {[%clk 0:00:10.7]} 33. Kg2 {[%clk 0:00:43.6]} 33... Rd6
{[%clk 0:00:10.9]} 34. Rxd6 {[%clk 0:00:27.9]} 34... Bxd6 {[%clk 0:00:11.8]} 35.
Rc6 {[%clk 0:00:28]} 35... Rxd7 {[%clk 0:00:10.5]} 36. Be6 {[%clk 0:00:28.6]}
36... Rd8 {[%clk 0:00:11.2]} 37. Rxa6 {[%clk 0:00:28.6]} 37... e4 {[%clk
0:00:07.4]} 38. fxe4 {[%clk 0:00:24.6]} 38... Nxe4 {[%clk 0:00:07.4]} 39. Ra7+
{[%clk 0:00:22.8]} 39... Kh6 {[%clk 0:00:06.7]} 40. Bc4 {[%clk 0:00:16.4]} 40...
Bc5 {[%clk 0:00:05.7]} 41. h4 {[%clk 0:00:10.4]} 41... Bxa7 {[%clk 0:00:04.8]}
0-1

[Event "Late-Titled-Tuesday-Blitz-June-25-2024"]
[Site "Chess.com"]
[Date "2024.06.25"]
[Round "11"]
[White "TokChess"]
[Black "jcibarra"]
[Result "0-1"]
[WhiteElo "2551"]
[BlackElo "2898"]
[TimeControl "180+1"]
[EndTime "16:06:50 PDT"]
[Termination "jcibarra won on time"]

1. e4 {[%clk 0:03:00.9]} 1... c5 {[%clk 0:02:59.4]} 2. Nf3 {[%clk 0:03:01.1]}
2... e6 {[%clk 0:02:59.9]} 3. d3 {[%clk 0:02:50.8]} 3... Nc6 {[%clk 0:02:59.5]}
4. Nbd2 {[%clk 0:02:51]} 4... g6 {[%clk 0:02:59.2]} 5. g3 {[%clk 0:02:50.8]}
5... Bg7 {[%clk 0:02:59.8]} 6. Bg2 {[%clk 0:02:51.7]} 6... d5 {[%clk 0:02:56.5]}
7. O-O {[%clk 0:02:52.6]} 7... Nf6 {[%clk 0:02:56.8]} 8. Re1 {[%clk 0:02:52.9]}
8... O-O {[%clk 0:02:56.7]} 9. Qe2 {[%clk 0:02:49]} 9... e5 {[%clk 0:02:55.7]}
10. exd5 {[%clk 0:02:45.4]} 10... Nxd5 {[%clk 0:02:55.3]} 11. Nc4 {[%clk
0:02:35.9]} 11... Re8 {[%clk 0:02:53]} 12. Bg5 {[%clk 0:02:30.2]} 12... f6
{[%clk 0:02:49.7]} 13. Bd2 {[%clk 0:02:26.9]} 13... Be6 {[%clk 0:02:48.5]} 14.
a4 {[%clk 0:02:24.1]} 14... b6 {[%clk 0:02:43.6]} 15. c3 {[%clk 0:02:21.8]}
15... Qd7 {[%clk 0:02:40.5]} 16. a5 {[%clk 0:02:10.6]} 16... b5 {[%clk
0:02:35.9]} 17. Ne3 {[%clk 0:02:11]} 17... Rad8 {[%clk 0:02:27.8]} 18. a6 {[%clk
0:02:01.5]} 18... Nde7 {[%clk 0:02:23.5]} 19. Bf1 {[%clk 0:01:45.9]} 19... Nc8
{[%clk 0:02:07.7]} 20. Qd1 {[%clk 0:01:34.3]} 20... Nb6 {[%clk 0:02:02.3]} 21.
Qc2 {[%clk 0:01:27.4]} 21... Qf7 {[%clk 0:01:54.9]} 22. b4 {[%clk 0:01:22.7]}
22... cxb4 {[%clk 0:01:51.2]} 23. cxb4 {[%clk 0:01:23.6]} 23... Rc8 {[%clk
0:01:21.8]} 24. Qb2 {[%clk 0:01:09.5]} 24... h6 {[%clk 0:01:21.3]} 25. Bg2
{[%clk 0:01:08]} 25... f5 {[%clk 0:01:17.3]} 26. Bc3 {[%clk 0:01:03.7]} 26...
Na4 {[%clk 0:01:16.2]} 27. Rxa4 {[%clk 0:00:58.4]} 27... bxa4 {[%clk 0:01:17.1]}
28. b5 {[%clk 0:00:59.3]} 28... Nd4 {[%clk 0:01:12.3]} 29. Nxd4 {[%clk
0:00:55.2]} 29... Rxc3 {[%clk 0:01:07.2]} 30. Nxe6 {[%clk 0:00:44.7]} 30... Rb3
{[%clk 0:01:05.4]} 31. Qa2 {[%clk 0:00:40.2]} 31... Rxe6 {[%clk 0:01:03.2]} 32.
Bd5 {[%clk 0:00:37.7]} 32... Kh7 {[%clk 0:01:03.1]} 33. Bxb3 {[%clk 0:00:23.7]}
33... axb3 {[%clk 0:01:02.3]} 34. Qxb3 {[%clk 0:00:24.6]} 34... Qd7 {[%clk
0:01:01.4]} 35. Nc4 {[%clk 0:00:22.7]} 35... Qd5 {[%clk 0:00:55.7]} 36. Rb1
{[%clk 0:00:17.1]} 36... e4 {[%clk 0:00:53.7]} 37. b6 {[%clk 0:00:13.7]} 37...
exd3 {[%clk 0:00:44.3]} 38. b7 {[%clk 0:00:10.5]} 38... Re2 {[%clk 0:00:34.2]}
39. b8=Q {[%clk 0:00:05.7]} 39... d2 {[%clk 0:00:09.8]} 40. Qf4 {[%clk
0:00:01.7]} 40... Re1+ {[%clk 0:00:08.7]} 0-1

[Event "Late-Titled-Tuesday-Blitz-June-25-2024"]
[Site "Chess.com"]
[Date "2024.06.25"]
[Round "11"]
[White "lamomiajunior"]
[Black "MaxLeto"]
[Result "0-1"]
[WhiteElo "2746"]
[BlackElo "2484"]
[TimeControl "180+1"]
[EndTime "16:06:54 PDT"]
[Termination "MaxLeto won by resignation"]

1. d4 {[%clk 0:03:00.9]} 1... d5 {[%clk 0:02:57]} 2. Nc3 {[%clk 0:03:01.4]} 2...
Nf6 {[%clk 0:02:56.6]} 3. Bf4 {[%clk 0:03:01.9]} 3... c5 {[%clk 0:02:42.5]} 4.
e4 {[%clk 0:03:00.4]} 4... e6 {[%clk 0:02:38.6]} 5. Nb5 {[%clk 0:02:54.7]} 5...
Na6 {[%clk 0:02:37.8]} 6. e5 {[%clk 0:02:54.1]} 6... Nd7 {[%clk 0:02:31.9]} 7.
c3 {[%clk 0:02:54.1]} 7... Qb6 {[%clk 0:02:19.9]} 8. Nf3 {[%clk 0:02:51.3]} 8...
Nc7 {[%clk 0:02:16]} 9. Nxc7+ {[%clk 0:02:48.7]} 9... Qxc7 {[%clk 0:02:16.1]}
10. Bd3 {[%clk 0:02:47.8]} 10... h6 {[%clk 0:02:15]} 11. h4 {[%clk 0:02:47]}
11... Be7 {[%clk 0:02:13.7]} 12. h5 {[%clk 0:02:46.2]} 12... b6 {[%clk
0:01:53.4]} 13. Qe2 {[%clk 0:02:45.7]} 13... a5 {[%clk 0:01:46.1]} 14. O-O
{[%clk 0:02:42.6]} 14... Qa7 {[%clk 0:01:46]} 15. a4 {[%clk 0:02:35]} 15... Ba6
{[%clk 0:01:45.7]} 16. Bb5 {[%clk 0:02:35.3]} 16... Bxb5 {[%clk 0:01:31.7]} 17.
axb5 {[%clk 0:02:36.2]} 17... Rc8 {[%clk 0:01:19.6]} 18. Rfc1 {[%clk 0:02:31.8]}
18... O-O {[%clk 0:01:19.2]} 19. g3 {[%clk 0:02:30]} 19... Rc7 {[%clk
0:01:15.8]} 20. Kg2 {[%clk 0:02:29.9]} 20... Rfc8 {[%clk 0:01:16.3]} 21. Rd1
{[%clk 0:02:30.3]} 21... cxd4 {[%clk 0:01:10.2]} 22. Nxd4 {[%clk 0:02:30.8]}
22... Nb8 {[%clk 0:01:01]} 23. g4 {[%clk 0:02:21.3]} 23... Rc4 {[%clk
0:00:50.4]} 24. Be3 {[%clk 0:02:14.4]} 24... Qd7 {[%clk 0:00:47]} 25. f4 {[%clk
0:02:12]} 25... f6 {[%clk 0:00:44.2]} 26. Rf1 {[%clk 0:02:09.2]} 26... Rf8
{[%clk 0:00:32.5]} 27. Rae1 {[%clk 0:02:06.4]} 27... Bc5 {[%clk 0:00:30.3]} 28.
Kh3 {[%clk 0:01:51.9]} 28... fxe5 {[%clk 0:00:22.9]} 29. fxe5 {[%clk 0:01:51.9]}
29... Rxf1 {[%clk 0:00:22.5]} 30. Rxf1 {[%clk 0:01:52.8]} 30... Bxd4 {[%clk
0:00:22.4]} 31. Bxd4 {[%clk 0:01:52.9]} 31... Qxb5 {[%clk 0:00:22.5]} 32. Qf3
{[%clk 0:01:41.7]} 32... Qe8 {[%clk 0:00:20.9]} 33. Bxb6 {[%clk 0:01:41.6]}
33... a4 {[%clk 0:00:19.2]} 34. Bd4 {[%clk 0:01:39.2]} 34... Nc6 {[%clk
0:00:18.7]} 35. Qf4 {[%clk 0:01:29]} 35... Qe7 {[%clk 0:00:16.4]} 36. Rf2 {[%clk
0:01:23.7]} 36... Qe8 {[%clk 0:00:11.2]} 37. Qe3 {[%clk 0:01:19.2]} 37... Nxd4
{[%clk 0:00:06.9]} 38. cxd4 {[%clk 0:01:20.1]} 38... Qe7 {[%clk 0:00:06.5]} 39.
Qf4 {[%clk 0:01:15.4]} 39... Qe8 {[%clk 0:00:05.7]} 40. Qe3 {[%clk 0:01:01.7]}
40... Qe7 {[%clk 0:00:05.9]} 41. Kg3 {[%clk 0:01:01.4]} 41... Qa7 {[%clk
0:00:04.5]} 42. Rd2 {[%clk 0:00:55.8]} 42... Rb4 {[%clk 0:00:02]} 43. Qc3 {[%clk
0:00:43.4]} 43... Rb3 {[%clk 0:00:02.2]} 44. Qxb3 {[%clk 0:00:39.4]} 44... axb3
{[%clk 0:00:03.1]} 45. Kf3 {[%clk 0:00:40.2]} 45... Qa4 {[%clk 0:00:03.2]} 46.
Ke3 {[%clk 0:00:40.8]} 46... Qc4 {[%clk 0:00:03.3]} 47. Rd3 {[%clk 0:00:41]}
47... Qc2 {[%clk 0:00:03.3]} 48. Rd2 {[%clk 0:00:41.3]} 48... Qc1 {[%clk
0:00:03.5]} 49. Ke2 {[%clk 0:00:39.7]} 49... Qg1 {[%clk 0:00:03.2]} 50. Kf3
{[%clk 0:00:39.3]} 50... Qf1+ {[%clk 0:00:03.4]} 51. Ke3 {[%clk 0:00:39.5]}
51... Qh1 {[%clk 0:00:03.2]} 52. Kd3 {[%clk 0:00:33.1]} 52... Qe4+ {[%clk
0:00:04.1]} 53. Kc3 {[%clk 0:00:33.7]} 53... Qxg4 {[%clk 0:00:03.9]} 54. Rh2
{[%clk 0:00:33.3]} 54... Qg3+ {[%clk 0:00:03.9]} 55. Kb4 {[%clk 0:00:33.7]}
55... Qxh2 {[%clk 0:00:04.5]} 0-1